bitfinex-derivatives/quotes_ETHF0:USTF0_20251216
["timestamp","ask_amount","ask_price","bid_price","bid_amount"]
[1765861725286,3.8183,2921.8,2921.7,3.1076]
[1765861725494,5.02753461,2922.0,2921.9,1.5251]
[1765861726197,1.20923461,2922.0,2921.9,3.0502]
[1765861726597,3.10383461,2922.0,2921.9,3.0502]
[1765861726800,5.02753461,2922.0,2921.9,3.0502]
[1765861727400,1.20923461,2922.0,2921.9,3.0502]
[1765861727604,0.00513461,2922.0,2921.9,3.0502]
[1765861728497,3.02953461,2922.0,2921.9,3.0502]
[1765861728698,1.13493461,2922.0,2921.9,3.0502]
[1765861729400,3.02953461,2922.0,2921.9,3.0502]
[1765861729597,1.13493461,2922.0,2921.9,3.0502]
[1765861729800,3.02953461,2922.0,2921.9,3.0502]
[1765861730106,1.13493461,2922.0,2921.9,3.0502]
[1765861730497,4.95323461,2922.0,2921.9,1.5251]
[1765861730694,3.8183,2921.9,2921.8,3.2078]
[1765861731094,4.9481,2921.5,2921.4,0.0091164]
[1765861731800,1.8946,2921.5,2921.4,3.8885164]
[1765861732006,4.9481,2921.5,2921.4,3.8885164]
[1765861732398,1.8946,2921.5,2921.4,3.8885164]
[1765861732707,4.9481,2921.5,2921.4,3.8885164]
[1765861734208,3.2078,2921.7,2921.6,3.8794]
[1765861734401,3.2078,2921.7,2921.6,6.5894]
[1765861734606,3.21293461,2922.0,2921.9,3.8794]
[1765861735800,0.00513461,2922.0,2921.9,3.8794]
[1765861736203,4.95323461,2922.0,2921.9,3.8794]
[1765861736906,1.89973461,2922.0,2921.9,3.8794]
[1765861737102,0.00513461,2922.0,2921.9,3.8794]
[1765861737512,1.89973461,2922.0,2921.9,3.8794]
[1765861739710,4.95323461,2922.0,2921.9,3.8794]
[1765861740104,1.89973461,2922.0,2921.9,3.8794]
[1765861740309,0.00513461,2922.0,2921.9,3.8794]
[1765861740816,3.82343461,2922.0,2921.9,3.8794]
[1765861741108,4.9481,2921.5,2921.4,5.1453164]
[1765861741312,1.13493461,2922.0,2921.4,7.0963164]
[1765861741506,7.0261,2921.8,2921.7,3.8794]
[1765861741706,7.0261,2921.8,2921.7,1.9284]
[1765861742303,7.0261,2921.8,2921.7,3.8794]
[1765861742906,1.8659,2921.8,2921.7,3.8794]
[1765861743118,1.87103461,2922.0,2921.9,3.756]
[1765861743408,0.00513461,2922.0,2921.9,6.416]
[1765861743906,1.8659,2921.5,2921.4,3.2169164]
[1765861744109,1.8659,2921.5,2921.4,0.0091164]
[1765861744110,6.32749288,2921.5,2921.4,0.0091164]
[1765861744805,6.49867288,2921.5,2921.4,0.0091164]
[1765861745410,4.95238,2921.5,2921.4,0.0091164]
[1765861746515,4.95238,2921.5,2921.4,1.8153164]
[1765861746713,3.10698,2921.5,2921.4,3.7651164]
[1765861746915,4.95238,2921.5,2921.4,1.8153164]
[1765861747415,4.95238,2921.5,2921.4,0.0091164]
[1765861747816,3.7113,2920.8,2920.7,6.9638]
[1765861748316,1.8659,2920.8,2920.7,6.9638]
[1765861748504,4.7812,2921.0,2920.9,3.756]
[1765861748909,4.78414825,2921.0,2920.9,1.8104698]
[1765861749117,4.78414825,2921.0,2920.9,0.0042698]
[1765861750018,4.78414825,2921.0,2920.9,1.8104698]
[1765861750310,4.78414825,2921.0,2920.9,0.0042698]
[1765861750714,0.00294825,2921.0,2920.9,3.7602698]
[1765861760421,0.17117,2921.7,2921.0,1.0813]
[1765861760623,3.7113,2921.6,2921.5,1.8062]
[1765861761226,3.7113,2921.6,2921.5,3.756]
[1765861761427,3.71558713,2921.6,2921.5,1.8062]
[1765861761928,6.92338713,2921.6,2921.5,1.8062]
[1765861762124,3.7113,2921.2,2921.1,40.8]
[1765861762521,4.95241,2921.0,2920.9,0.0042698]
[1765861762722,4.7812,2920.5,2920.4,1.8062]
[1765861763731,4.7812,2920.5,2920.4,1.80999276]
[1765861764724,3.2078,2920.8,2920.4,3.75979276]
[1765861764932,3.7113,2920.8,2920.7,1.8062]
[1765861765630,1.8659,2920.5,2920.4,3.75979276]
[1765861766126,4.7812,2920.5,2920.4,0.00379276]
[1765861769736,6.32972408,2920.5,2920.4,0.00379276]
[1765861771431,6.32972408,2920.5,2920.4,1.80999276]
[1765861771931,6.32972408,2920.5,2920.4,0.00379276]
[1765861773028,6.32972408,2920.5,2920.4,1.80999276]
[1765861773432,6.32972408,2920.5,2920.4,0.00379276]
[1765861773824,6.32961899,2920.5,2920.4,1.64189276]
[1765861775837,9.53741899,2920.5,2920.4,0.00379276]
[1765861776136,11.08583798,2920.5,2920.4,0.00379276]
[1765861776433,4.397,2920.0,2919.9,1.6381]
[1765861776737,0.17125,2920.3,2920.1,3.3425]
[1765861776738,1.69053461,2920.2,2920.1,3.3425]
[1765861777032,3.40483461,2920.2,2920.1,3.3425]
[1765861777233,0.00513461,2920.2,2920.1,3.3425]
[1765861777536,0.00513461,2920.2,2920.1,3.34625548]
[1765861780330,3.40483461,2920.2,2920.1,0.00375548]
[1765861780536,0.00513461,2920.2,2920.1,3.34625548]
[1765861783038,0.00513461,2920.2,2920.1,5.91625548]
[1765861785440,3.2078,2920.7,2920.6,3.3425]
[1765861785640,3.2078,2920.7,2920.6,5.6325]
[1765861786840,0.00513461,2920.9,2920.8,3.3425]
[1765861787041,0.00513461,2920.9,2920.8,5.7725]
[1765861787338,3.2078,2921.4,2921.3,3.3425]
[1765861787541,0.00428713,2921.6,2921.5,4.3581]
[1765861787744,0.9973,2922.0,2921.5,4.3581]
[1765861787745,3.2078,2922.0,2921.9,3.3425]
[1765861787939,3.3997,2922.3,2922.2,1.6381]
[1765861788132,3.3997,2922.3,2921.5,4.2234]
[1765861788133,3.3997,2922.3,2921.5,1.0156]
[1765861788337,0.00513461,2922.2,2921.6,0.00513461]
[1765861788540,3.40483461,2922.2,2922.1,1.6381]
[1765861788738,1.69482827,2922.2,2922.1,3.34681865]
[1765861788944,3.40912827,2922.2,2922.1,3.34681865]
[1765861791047,3.40912827,2922.2,2922.1,0.00431865]
[1765861791342,3.40912827,2922.2,2922.1,1.64241865]
[1765861791543,0.00942827,2922.2,2922.1,5.81681865]
[1765861792949,0.00942827,2922.2,2922.1,3.34681865]
[1765861793139,3.40912827,2922.2,2922.1,3.34681865]
[1765861793743,0.00942827,2922.2,2922.1,3.34681865]
[1765861794050,0.00942827,2922.2,2922.1,5.99681865]
[1765861795649,0.00942827,2922.2,2922.1,5.71681865]
[1765861796240,0.00942827,2922.2,2922.1,3.34681865]
[1765861796647,1.69482827,2922.2,2922.1,3.34681865]
[1765861796844,3.40912827,2922.2,2922.1,3.34681865]
[1765861798649,3.40912827,2922.2,2922.1,0.00431865]
[1765861799245,3.40912827,2922.2,2922.1,1.64241865]
[1765861799454,3.40912827,2922.2,2922.1,0.00431865]
[1765861799860,0.00942827,2922.2,2922.1,3.34681865]
[1765861800153,1.69482827,2922.2,2922.1,3.34681865]
[1765861800352,3.40912827,2922.2,2922.1,3.34681865]
[1765861801142,3.40912827,2922.2,2922.1,1.64241865]
[1765861801354,3.40912827,2922.2,2922.1,0.00431865]
[1765861801544,3.40912827,2922.2,2922.1,1.64241865]
[1765861802862,3.40912827,2922.2,2922.1,1.53091865]
[1765861803051,0.00942827,2922.2,2922.1,3.02921865]
[1765861803251,0.00942827,2922.2,2922.1,5.61921865]
[1765861803556,0.9973,2923.0,2922.9,3.0249]
[1765861803557,3.9668,2923.0,2922.9,3.0249]
[1765861803743,1.4955,2923.0,2922.9,3.0249]
[1765861803946,2.9695,2923.0,2922.9,3.0249]
[1765861804151,1.4955,2923.0,2922.9,3.0249]
[1765861804349,3.8759,2923.0,2922.1,3.21211865]
[1765861804549,3.8759,2922.5,2922.4,1.5266]
[1765861804751,3.8759,2922.5,2922.4,3.0249]
[1765861804950,3.8759,2922.5,2922.4,1.5266]
[1765861805144,2.9695,2922.2,2922.1,4.73871865]
[1765861807449,2.9695,2922.2,2922.1,3.21211865]
[1765861809564,3.14063,2922.4,2922.3,3.0249]
[1765861809756,3.14063,2922.4,2922.3,1.5266]
[1765861810854,2.9695,2922.2,2922.1,6.23701865]
[1765861811054,3.14063,2922.4,2922.3,3.0249]
[1765861811264,3.14063,2922.4,2922.3,1.5266]
[1765861812065,3.14063,2922.4,2922.3,3.0249]
[1765861812273,1.4955,2922.4,2922.3,3.0249]
[1765861812568,1.4955,2922.5,2922.4,3.0249]
[1765861812865,1.4955,2922.5,2922.4,5.6349]
[1765861813258,2.9695,2922.5,2922.4,5.6349]
[1765861813464,2.9695,2922.5,2922.4,3.0249]
[1765861813657,2.9695,2922.2,2922.1,4.73871865]
[1765861813868,2.9695,2922.2,2922.1,3.21211865]
[1765861814170,2.9695,2922.2,2922.1,0.00431865]
[1765861814458,3.14064,2922.2,2922.1,0.00431865]
[1765861814658,3.14064,2922.2,2922.1,1.53091865]
[1765861814864,1.4955,2922.2,2922.1,3.02921865]
[1765861815062,3.21293461,2922.8,2922.7,3.0249]
[1765861815363,0.00513461,2922.8,2922.7,5.6949]
[1765861819462,0.00513461,2922.8,2922.7,3.0249]
[1765861819766,0.00513461,2922.8,2922.7,5.4549]
[1765861820755,0.10649044,2923.3,2923.2,3.0249]
[1765861820958,0.10649044,2923.3,2923.2,5.6649]
[1765861821160,0.10649044,2923.3,2923.2,3.0249]
[1765861821468,0.10649044,2923.3,2923.2,5.4249]
[1765861821770,0.11077901,2923.3,2923.2,5.4249]
[1765861822174,2.87557128,2923.6,2923.5,3.9438]
[1765861822366,2.74473309,2924.5,2923.5,3.9438]
[1765861822367,6.1773,2924.2,2924.1,1.5266]
[1765861823164,6.1817223,2924.2,2924.1,1.5266]
[1765861823668,6.1817223,2924.2,2924.1,3.0249]
[1765861823971,3.2122223,2924.2,2924.1,3.0249]
[1765861824470,0.33836337,2925.1,2924.1,3.0249]
[1765861824471,3.2078,2925.2,2925.1,3.0249]
[1765861824668,4.7033,2925.9,2925.8,3.0249]
[1765861824869,6.1773,2925.9,2925.2,44.0078]
[1765861825072,6.1773,2925.9,2925.8,1.5266]
[1765861825369,6.1773,2925.9,2925.8,1.53036493]
[1765861825370,6.17999242,2925.9,2925.8,1.53036493]
[1765861825566,4.70599242,2925.9,2925.8,1.53036493]
[1765861825765,6.17999242,2925.9,2925.8,1.53036493]
[1765861826773,6.17999242,2925.9,2925.8,0.00376493]
[1765861827776,6.17999242,2925.9,2924.8,2.685995]
[1765861827777,1.4955,2924.9,2924.8,2.685995]
[1765861828070,0.9064,2925.0,2924.6,6.2327]
[1765861828276,0.9064,2925.5,2924.9,6.2327]
[1765861828476,0.9064,2925.5,2924.9,3.0249]
[1765861828677,0.9064,2925.5,2924.9,3.03305971]
[1765861829174,1.4955,2925.0,2924.9,3.03305971]
[1765861829577,3.8759,2925.0,2924.9,0.00815971]
[1765861830778,9.8759,2925.0,2924.9,0.00815971]
[1765861831274,13.0837,2925.0,2924.9,0.00815971]
[1765861831574,7.0837,2925.0,2924.9,0.00815971]
[1765861833178,3.6605,2925.0,2924.9,2.84815971]
[1765861833474,3.6605,2925.0,2924.9,0.00815971]
[1765861834073,1.3926,2925.0,2924.9,2.88455971]
[1765861834276,5.9846,2925.2,2925.1,1.4192]
[1765861834475,4.6004,2925.2,2925.1,2.8764]
[1765861834676,1.3926,2925.2,2925.1,2.8764]
[1765861835372,6.891,2925.5,2925.4,1.4192]
[1765861835573,6.891,2925.5,2925.4,2.8764]
[1765861835876,3.2078,2925.5,2925.4,5.6664]
[1765861836176,4.6004,2925.8,2925.7,2.8764]
[1765861836571,5.9846,2925.8,2925.1,3.2078]
[1765861836772,3.2078,2925.8,2925.7,2.8764]
[1765861837370,2.77949242,2925.9,2925.4,3.2078]
[1765861837778,0.00269242,2925.9,2925.8,2.8764]
[1765861838178,0.00269242,2925.9,2925.8,5.2264]
[1765861839183,0.00269242,2925.9,2925.8,2.8764]
[1765861839681,0.00269242,2925.9,2925.8,5.5664]
[1765861841083,0.00269242,2925.9,2925.8,2.8764]
[1765861842386,1.39529242,2925.9,2925.5,2.8764]
[1765861842592,4.17209242,2925.9,2925.8,1.4192]
[1765861842788,4.17209242,2925.9,2925.4,3.2078]
[1765861842980,4.17209242,2925.9,2925.4,5.6078]
[1765861843180,4.17209242,2925.9,2925.4,3.2078]
[1765861843782,3.6605,2925.5,2925.4,4.627]
[1765861844178,3.6605,2925.5,2925.4,3.2078]
[1765861844373,3.6605,2925.5,2925.1,3.2078]
[1765861844374,2.7768,2925.2,2925.1,3.2078]
[1765861845189,3.6605,2925.0,2924.9,0.00815971]
[1765861850696,3.6605,2925.0,2924.1,4.36043759]
[1765861850890,3.2078,2924.6,2924.1,6.75043759]
[1765861851090,5.9846,2924.6,2924.5,1.4192]
[1765861851594,5.9846,2924.6,2924.5,1.42241675]
[1765861852382,2.7768,2924.6,2924.5,1.42241675]
[1765861852586,0.8837,2925.0,2924.5,2.87961675]
[1765861853393,2.7768,2924.6,2924.5,2.87961675]
[1765861853599,2.7768,2924.6,2924.5,1.42241675]
[1765861855998,2.7768,2924.6,2924.5,2.87961675]
[1765861857894,2.7768,2924.6,2924.5,1.42241675]
[1765861858201,2.7768,2924.6,2924.5,0.00321675]
[1765861859687,2.7768,2923.9,2923.8,6.0842]
[1765861859890,2.2763,2924.0,2923.9,2.8764]
[1765861860696,3.6605,2924.0,2923.9,0.00385064]
[1765861861497,3.6605,2924.0,2923.9,1.42305064]
[1765861861690,3.21293461,2924.2,2924.1,2.8764]
[1765861862298,4.45383461,2924.2,2924.1,2.8764]
[1765861862602,3.21293461,2924.2,2924.1,2.8764]
[1765861862799,5.68243461,2924.2,2924.1,2.8764]
[1765861864991,4.45383461,2924.2,2924.1,2.8764]
[1765861866515,5.68243461,2924.2,2924.1,2.8764]
[1765861866703,3.21293461,2924.2,2924.1,5.2464]
[1765861866908,0.00513461,2924.2,2924.1,5.2464]
[1765861868117,3.2471,2924.0,2923.9,1.32285064]
[1765861869608,3.2471,2924.0,2923.9,0.00385064]
[1765861870114,0.00513461,2924.2,2924.1,2.5546]
[1765861870308,0.00513461,2924.2,2924.1,5.4046]
[1765861870815,3.2471,2924.0,2923.9,0.00385064]
[1765861871109,0.00513461,2924.2,2924.1,2.5546]
[1765861871314,0.00513461,2924.2,2924.1,43.3546]
[1765861871910,2.47463461,2924.2,2924.1,43.3546]
[1765861872107,2.47463461,2924.2,2924.1,2.5546]
[1765861872303,2.47463461,2924.2,2924.1,1.319]
[1765861872711,2.47463461,2924.2,2924.1,2.5546]
[1765861872906,0.00513461,2924.2,2924.1,2.5546]
[1765861873112,1.24603461,2924.2,2924.1,2.5546]
[1765861874920,2.47463461,2924.2,2924.1,2.5546]
[1765861875120,3.2471,2924.0,2923.9,40.80385064]
[1765861875322,3.2471,2924.0,2923.9,1.32285064]
[1765861875616,3.2471,2924.0,2923.9,0.00385064]
[1765861877732,6.62593,2924.0,2923.9,0.00385064]
[1765861877917,6.62593,2924.0,2923.7,0.00513461]
[1765861877918,2.64054,2923.8,2923.7,0.00513461]
[1765861878312,2.4695,2922.9,2922.8,40.8]
[1765861878825,2.4695,2922.8,2922.7,3.2078]
[1765861879117,2.4695,2922.8,2922.7,4.53022005]
[1765861879622,5.6773,2922.8,2922.7,0.00342005]
[1765861880815,2.4695,2922.6,2922.5,0.00513461]
[1765861881011,2.4695,2921.8,2921.7,2.5546]
[1765861881316,2.4695,2921.8,2921.7,1.319]
[1765861881811,2.4695,2921.8,2921.7,1.32324533]
[1765861882013,2.4695,2921.8,2921.7,0.00424533]
[1765861883223,0.78273461,2922.0,2921.9,1.319]
[1765861883224,3.25223461,2922.0,2921.9,1.319]
[1765861883527,1.2409,2921.8,2921.7,2.55884533]
[1765861883725,2.4695,2921.8,2921.7,5.26884533]
[1765861884029,2.4695,2921.8,2921.7,4.03324533]
[1765861885120,2.4695,2921.8,2921.7,1.32324533]
[1765861885628,2.4695,2921.8,2921.7,4.00324533]
[1765861886022,2.4695,2921.8,2921.7,0.00424533]
[1765861886228,2.64066,2921.8,2921.7,0.00424533]
[1765861889029,2.4695,2921.8,2921.7,0.00424533]
[1765861890123,2.4695,2921.8,2921.7,2.55884533]
[1765861890327,2.4695,2921.8,2921.7,0.00424533]
[1765861892430,2.5017,2921.2,2921.1,3.2078]
[1765861892634,2.5017,2921.2,2919.0,0.602]
[1765861892635,2.2332,2920.3,2920.2,4.3213]
[1765861892833,2.2332,2920.3,2920.2,7.1313]
[1765861893036,2.2332,2920.3,2920.2,8.2706]
[1765861893232,1.1164,2920.3,2920.2,8.2706]
[1765861893535,1.12075772,2920.3,2920.2,8.08474683]
[1765861893931,2.23755772,2920.3,2920.2,8.08474683]
[1765861894238,2.23755772,2920.3,2920.2,6.94544683]
[1765861894729,2.23755772,2920.3,2920.2,8.08474683]
[1765861895237,2.23755772,2920.3,2920.2,6.67544683]
[1765861895639,2.23755772,2920.3,2920.2,7.81474683]
[1765861896628,1.12075772,2920.3,2920.2,7.81474683]
[1765861896938,0.00435772,2920.3,2920.2,7.81474683]
[1765861897938,1.12075772,2920.3,2920.2,7.81474683]
[1765861898340,2.23755772,2920.3,2920.2,7.81474683]
[1765861898534,2.23755772,2920.3,2920.2,6.67544683]
[1765861898735,2.23755772,2920.3,2920.2,5.56194683]
[1765861899433,2.23755772,2920.3,2920.2,6.67544683]
[1765861899932,2.23755772,2920.3,2920.2,7.81474683]
[1765861900639,2.23755772,2920.3,2920.2,0.00414683]
[1765861900938,2.23755772,2920.3,2919.4,3.2078]
[1765861901135,2.9217,2919.5,2919.4,7.9406]
[1765861901331,0.6885,2920.0,2919.4,7.9406]
[1765861901736,1.1164,2919.6,2919.5,2.2528]
[1765861901936,1.1164,2919.6,2919.5,5.10714984]
[1765861902844,2.2332,2919.6,2919.5,5.10714984]
[1765861903142,1.1164,2919.6,2919.5,5.10714984]
[1765861903339,4.32933461,2920.1,2920.0,2.2528]
[1765861903530,3.21293461,2920.1,2920.0,2.2528]
[1765861903731,0.00513461,2920.1,2920.0,2.9116]
[1765861904447,0.00513461,2920.1,2920.0,6.1194]
[1765861904633,3.2078,2920.7,2920.0,6.1194]
[1765861904634,0.88411655,2921.4,2920.6,1.1393]
[1765861904834,1.1164,2921.0,2920.9,2.2528]
[1765861905043,3.2078,2921.1,2921.0,2.9348]
[1765861905341,3.2078,2921.1,2921.0,5.7648]
[1765861905842,3.21190526,2921.1,2921.0,5.7648]
[1765861906040,0.00410526,2921.1,2921.0,5.7648]
[1765861912346,5.26e-06,2921.1,2921.0,5.7648]
[1765861912749,5.26e-06,2921.1,2921.0,46.5648]
[1765861914549,5.26e-06,2921.1,2921.0,45.8828]
[1765861915446,1.11640526,2921.1,2921.0,45.8828]
[1765861915650,2.23320526,2921.1,2921.0,3.9235]
[1765861915947,2.23320526,2921.1,2921.0,5.0628]
[1765861916449,5.26e-06,2921.1,2921.0,3.9493]
[1765861916650,5.26e-06,2921.1,2921.0,2.81]
[1765861917146,5.26e-06,2921.1,2921.0,3.3505]
[1765861918148,5.26e-06,2921.1,2921.0,2.81]
[1765861918348,5.26e-06,2921.1,2921.0,3.3278]
[1765861918545,1.11640526,2921.1,2921.0,3.9493]
[1765861918853,5.26e-06,2921.1,2921.0,2.81]
[1765861919751,5.26e-06,2921.1,2921.0,3.3165]
[1765861921041,2.23320526,2921.1,2920.8,44.01293461]
[1765861921248,2.2332,2920.9,2920.8,6.65643461]
[1765861921547,2.2332,2920.9,2920.8,5.54293461]
[1765861922147,2.2332,2920.9,2920.8,2.33513461]
[1765861922657,2.1722,2920.6,2920.5,3.2078]
[1765861922844,2.1556,2920.3,2920.2,3.2078]
[1765861923045,2.1556,2920.3,2920.2,5.5478]
[1765861923342,2.1556,2920.3,2920.2,5.8078]
[1765861924856,2.1556,2920.3,2920.2,3.2078]
[1765861925155,2.1556,2920.3,2920.2,6.6413]
[1765861925355,2.1556,2920.3,2920.2,7.6548]
[1765861925956,2.8112,2920.5,2920.4,1.0635]
[1765861926158,1.0998,2920.3,2920.2,5.2848]
[1765861926350,3.2078,2920.7,2920.4,2.077]
[1765861926657,5.26e-06,2921.1,2920.5,3.8141]
[1765861926858,5.26e-06,2921.1,2920.5,6.2541]
[1765861928651,5.26e-06,2921.1,2920.5,8.57440767]
[1765861928857,5.26e-06,2921.1,2920.6,40.8]
[1765861929059,5.26e-06,2921.1,2920.6,43.15]
[1765861929753,5.26e-06,2921.1,2920.6,40.8]
[1765861929958,5.26e-06,2921.1,2920.6,43.24]
[1765861931257,5.26e-06,2921.1,2920.6,43.65]
[1765861931563,5.26e-06,2921.1,2920.6,40.8]
[1765861931860,5.26e-06,2921.1,2920.6,43.6]
[1765861933355,5.26e-06,2921.1,2920.6,43.16]
[1765861934356,1.0998,2920.7,2920.6,40.8]
[1765861934556,2.1556,2920.7,2920.6,2.44]
[1765861935258,2.1556,2920.7,2920.6,3.5035]
[1765861935647,2.1556,2920.7,2920.6,2.44]
[1765861935852,0.6556,2921.0,2919.0,3.9202]
[1765861935853,2.1556,2920.3,2920.2,3.2078]
[1765861936159,1.0998,2920.3,2920.2,7.8148]
[1765861937958,1.7554,2920.5,2920.4,2.077]
[1765861938264,5.26e-06,2921.1,2920.5,0.5179]
[1765861938458,5.26e-06,2921.1,2920.6,3.2078]
[1765861938665,5.26e-06,2921.1,2920.7,40.8]
[1765861938965,5.26e-06,2921.1,2920.7,43.45]
[1765861940662,5.26e-06,2921.1,2921.0,0.463]
[1765861940855,5.26e-06,2921.1,2921.0,2.763]
[1765861941255,5.26e-06,2921.1,2921.0,2.903]
[1765861941653,5.26e-06,2921.1,2920.9,3.2078]
[1765861941856,5.26e-06,2921.1,2920.9,2.43]
[1765861942054,5.26e-06,2921.1,2920.9,5.6378]
[1765861943057,5.26e-06,2921.1,2921.0,0.431]
[1765861943263,5.26e-06,2921.1,2921.0,2.711]
[1765861945661,1.09980526,2921.1,2921.0,2.28]
[1765861945868,5.26e-06,2921.1,2921.0,3.2935]
[1765861946071,5.26e-06,2921.1,2921.0,2.28]
[1765861946458,5.26e-06,2921.1,2921.0,2.6794]
[1765861953159,5.26e-06,2921.1,2920.7,40.8]
[1765861953160,1.986,2920.8,2920.7,40.8]
[1765861953363,1.986,2920.8,2920.7,43.23]
[1765861953963,1.6007,2921.0,2920.9,1.9177]
[1765861954164,1.986,2920.8,2920.7,40.8]
[1765861954364,1.986,2920.8,2920.7,43.29]
[1765861954973,1.986,2920.8,2920.7,0.9886]
[1765861955370,1.0052,2920.6,2920.5,40.8]
[1765861955566,4.213,2920.6,2920.5,43.38]
[1765861955868,5.1938,2920.6,2920.5,3.5686]
[1765861956573,1.0052,2920.2,2920.1,40.8]
[1765861956769,1.986,2920.2,2920.1,40.8]
[1765861956969,2.5815,2920.0,2919.9,4.1964]
[1765861957277,2.5815,2920.0,2919.9,7.6955]
[1765861957471,2.5815,2920.0,2919.9,48.4955]
[1765861957873,2.5815,2920.0,2919.9,7.6955]
[1765861958579,1.6007,2920.0,2919.9,7.6955]
[1765861958769,1.6007,2920.0,2919.9,7.9755]
[1765861958969,0.5955,2920.5,2919.9,7.9755]
[1765861959273,3.37903,2920.6,2920.5,1.9177]
[1765861959472,4.38423,2920.6,2920.5,1.9177]
[1765861959674,5.36503,2920.6,2920.5,0.9886]
[1765861959975,2.5815,2920.5,2920.4,0.9886]
[1765861960274,3.2078,2920.6,2920.5,1.9177]
[1765861960871,1.0052,2920.6,2920.5,1.9177]
[1765861961676,1.986,2920.6,2920.2,3.2078]
[1765861961976,0.5955,2920.5,2919.9,5.1255]
[1765861962175,1.0052,2920.1,2920.0,1.9177]
[1765861962477,1.0052,2920.1,2920.0,4.2077]
[1765861962677,0.5955,2920.5,2920.0,4.2077]
[1765861963879,1.0052,2920.6,2920.5,1.9177]
[1765861964180,5.36501,2920.9,2920.8,1.9177]
[1765861964582,5.36501,2920.9,2920.8,0.9886]
[1765861964782,5.36501,2920.9,2920.0,0.4993]
[1765861965081,5.36501,2920.9,2920.0,3.3293]
[1765861965476,5.36501,2920.9,2920.2,3.2078]
[1765861966982,1.986,2920.3,2920.2,5.1255]
[1765861967683,1.0052,2920.3,2920.2,1.9177]
[1765861967876,5.36501,2920.9,2920.8,1.9177]
[1765861968073,4.213,2920.9,2920.8,1.9177]
[1765861968278,3.2078,2920.9,2920.8,1.9177]
[1765861968479,3.2078,2920.9,2920.8,4.4577]
[1765861968680,4.213,2921.2,2920.8,2.54]
[1765861968984,4.213,2921.2,2920.8,2.5]
[1765861968985,3.2078,2921.2,2920.8,2.5]
[1765861969276,3.2078,2921.2,2920.9,40.8]
[1765861969482,3.2078,2921.2,2920.9,43.46]
[1765861969687,0.00513461,2921.3,2921.0,0.3166]
[1765861969889,1.00520526,2921.1,2921.0,3.4391]
[1765861970183,1.98600526,2921.1,2921.0,0.9886]
[1765861970379,1.00520526,2921.1,2921.0,1.9177]
[1765861970584,1.98600526,2921.1,2921.0,1.9177]
[1765861970887,1.98600526,2921.1,2921.0,0.9886]
[1765861972783,1.98600526,2921.1,2921.0,4.2777]
[1765861972983,1.00520526,2921.1,2921.0,4.2777]
[1765861973180,5.26e-06,2921.1,2921.0,3.2891]
[1765861974780,5.26e-06,2921.1,2920.5,3.2078]
[1765861974781,2.5815,2921.0,2920.5,3.2078]
[1765861974974,2.5815,2921.0,2920.5,5.8378]
[1765861975384,2.5815,2921.0,2920.6,40.8]
[1765861975586,2.5815,2921.0,2920.6,2.78]
[1765861975979,2.5815,2921.0,2920.9,0.9886]
[1765861977183,0.5955,2921.0,2920.5,5.1255]
[1765861977388,2.5815,2921.0,2920.9,1.9177]
[1765861977586,1.6007,2921.0,2920.9,1.9177]
[1765861977892,2.5815,2921.0,2920.9,1.9177]
[1765861978192,5.26e-06,2921.1,2920.9,2.6]
[1765861978889,1.0052,2921.0,2920.9,2.6]
[1765861979089,2.5815,2921.0,2920.5,44.4291]
[1765861979394,2.5815,2921.0,2920.5,47.0891]
[1765861979692,2.5815,2921.0,2920.9,0.9886]
[1765861980895,2.5815,2921.0,2920.5,3.2078]
[1765861981095,2.5815,2921.0,2920.5,5.6178]
[1765861981583,2.5815,2921.0,2920.9,0.9886]
[1765861982095,2.5815,2921.0,2920.5,3.2078]
[1765861982294,2.5815,2921.0,2920.9,0.9031]
[1765861983690,2.5815,2921.0,2920.5,3.2078]
[1765861983995,0.887,2920.6,2920.5,4.9945]
[1765861984197,1.7596,2920.6,2920.5,4.1109]
[1765861984693,1.7596,2920.6,2920.5,4.9945]
[1765861984887,0.887,2920.6,2920.5,7.4645]
[1765861985088,2.3551,2921.0,2920.9,0.9031]
[1765861985394,2.3551,2921.0,2920.5,3.2078]
[1765861985592,0.887,2920.6,2920.5,4.5867]
[1765861985983,0.887,2920.6,2920.5,1.7867]
[1765861986188,1.7596,2920.6,2920.5,0.9031]
[1765861986385,1.7596,2920.6,2920.5,1.7867]
[1765861986696,0.5955,2921.0,2920.9,1.7867]
[1765861986891,2.3551,2921.0,2920.9,1.7867]
[1765861987589,5.26e-06,2921.1,2920.5,3.5456]
[1765861987794,5.26e-06,2921.1,2920.5,6.2156]
[1765861988399,5.26e-06,2921.1,2920.5,3.0078]
[1765861988593,5.26e-06,2921.1,2920.5,6.2156]
[1765861990996,0.887,2920.6,2920.5,4.1467]
[1765861991204,0.5071,2921.0,2920.5,4.1467]
[1765861991404,2.2667,2921.0,2920.9,0.9031]
[1765861992098,5.26e-06,2921.1,2920.9,1.7867]
[1765861992309,5.26e-06,2921.1,2921.0,0.3076]
[1765861992510,5.26e-06,2921.1,2921.0,2.7776]
[1765861992904,0.88700526,2921.1,2920.6,3.2078]
[1765861993207,0.887,2920.7,2920.6,7.6245]
[1765861993513,1.7596,2920.7,2920.6,7.6245]
[1765861993804,1.7596,2920.7,2920.6,0.9031]
[1765861994194,1.7596,2920.7,2920.2,44.0078]
[1765861994398,1.7596,2920.7,2920.6,0.9031]
[1765861994605,1.7596,2920.7,2920.6,1.7867]
[1765861995207,1.7596,2920.7,2920.6,0.9031]
[1765861995409,0.887,2920.3,2920.2,44.0078]
[1765861995705,5.4745,2921.0,2920.2,46.6878]
[1765861995900,1.3941,2921.0,2920.9,1.7867]
[1765861996105,2.2667,2921.0,2920.9,1.7867]
[1765861996310,5.4745,2921.0,2920.2,44.0078]
[1765861996606,1.7596,2920.6,2920.5,1.7867]
[1765861996803,1.7596,2920.6,2920.5,4.4267]
[1765861998106,5.4745,2921.0,2920.5,2.55]
[1765861998299,0.887,2920.6,2920.5,4.3367]
[1765861998500,3.7149,2921.0,2920.5,4.3367]